[Event "Czech Open Rapid G1 2024"]
[Site "Pardubice"]
[Date "2024.07.18"]
[Round "6.7"]
[White "Abdulov, Orkhan"]
[Black "Bures, Jaroslav"]
[Result "1-0"]
[Annotator "RC"]
[ECO "B19"]
[WhiteElo "2382"]
[BlackElo "2418"]
[PlyCount "133"]
[EventDate "2024.07.16"]
[EventType "swiss"]
[EventCountry "CZE"]
[SourceTitle "playchess.com"]
[Source "ChessBase"]
[SourceQuality "1"]
[TimeControl "1200+10"]

1. e4 {[%emt 0:00:05]} c6 {[%emt 0:00:01]} 2. d4 {[%emt 0:00:10]} d5 {[%emt 0:00:01]} 3. Nc3 {[%emt 0:00:14]} dxe4 {[%emt 0:00:01]} 4. Nxe4 {[%emt 0:00:02]} Bf5 {[%emt 0:00:01]} 5. Ng3 {[%emt 0:00:08]} Bg6 {[%emt 0:00:01]} 6. h4 {[%emt 0:00:04]} h6 {[%emt 0:00:01]} 7. Nf3 {[%emt 0:00:03]} Nd7 {[%emt 0:00:02]} 8. Bd3 {[%emt 0:01:07]} Bxd3 {[%emt 0:00:07]} 9. Qxd3 {[%emt 0:00:02]} e6 {[%emt 0:00:27]} 10. Bd2 {[%emt 0:00:51]} Ngf6 {[%emt 0:00:11]} 11. Qe2 {[%emt 0:00:30]} c5 {[%emt 0:02:09]} 12. O-O-O {[%emt 0:01:12]} cxd4 {[%emt 0:01:59]} 13. Nxd4 {[%emt 0:00:02]} Qb6 {[%emt 0:00:54]} 14. Ndf5 {[%emt 0:03:22]} O-O-O {[%emt 0:03:49]} 15. Be3 {[%emt 0:04:15]} Qa5 {[%emt 0:00:00]} 16. Qc4+ {[%emt 0:00:07]} Qc7 {[%emt 0:00:00]} 17. Qxc7+ {[%emt 0:00:42]} Kxc7 {[%emt 0:00:49]} 18. Bf4+ {[%emt 0:01:38]} e5 {[%emt 0:00:31]} 19. Bd2 {[%emt 0:00:17]} g6 {[%emt 0:02:55]} 20. Ne3 {[%emt 0:00:03]} Bc5 {[%emt 0:00:52]} 21. f3 {[%emt 0:00:56]} Nb6 {[%emt 0:01:06]} 22. Ne4 {[%emt 0:00:32]} Nxe4 {[%emt 0:00:38]} 23. fxe4 {[%emt 0:00:02]} Rd7 {[%emt 0:02:00]} 24. Ng4 {[%emt 0:01:25]} Nc4 {[%emt 0:03:16]} 25. Bc3 {[%emt 0:00:01]} Bd4 {[%emt 0:00:07]} 26. Bxd4 {[%emt 0:01:27]} Rxd4 {[%emt 0:00:11]} 27. Rxd4 {[%emt 0:00:49]} exd4 {[%emt 0:00:01]} 28. Rd1 {[%emt 0:00:35]} h5 {[%emt 0:00:57]} 29. Rxd4 {[%emt 0:00:19]} hxg4 {[%emt 0:00:05]} 30. Rxc4+ {[%emt 0:00:08]} Kd7 {[%emt 0:00:22]} 31. g3 {[%emt 0:00:15]} g5 {[%emt 0:00:05]} 32. hxg5 {[%emt 0:00:11]} Rh3 {[%emt 0:00:29]} 33. Rc3 {[%emt 0:00:35]} Ke6 {[%emt 0:00:20]} 34. Kd2 {[%emt 0:00:03]} Ke5 {[%emt 0:00:12]} 35. Rc7 {[%emt 0:01:03]} Ke6 {[%emt 0:01:01]} 36. Ke3 {[%emt 0:00:39]} Rxg3+ {[%emt 0:00:03]} 37. Kf4 {[%emt 0:00:01]} Rg2 {[%emt 0:00:06]} 38. Rxb7 {[%emt 0:00:06]} Rxc2 {[%emt 0:00:03]} 39. Kxg4 {[%emt 0:00:07]} a5 {[%emt 0:00:02]} 40. Kf4 {[%emt 0:00:15]} Rf2+ {[%emt 0:00:07]} 41. Ke3 {[%emt 0:00:02]} Rg2 {[%emt 0:00:01]} 42. Rb6+ {[%emt 0:00:07]} Ke7 {[%emt 0:00:03]} 43. Rb5 {[%emt 0:00:03]} a4 {[%emt 0:00:04]} 44. a3 {[%emt 0:00:10]} Kf8 {[%emt 0:00:03]} 45. Kd4 {[%emt 0:00:05]} Kg7 {[%emt 0:00:02]} 46. Kc3 {[%emt 0:00:28]} Kg6 {[%emt 0:00:04]} 47. Ra5 {[%emt 0:00:03]} Rg3+ {[%emt 0:00:20]} 48. Kc4 {[%emt 0:00:16]} Rb3 {[%emt 0:00:11]} 49. Rb5 {[%emt 0:00:10]} Re3 {[%emt 0:00:07]} 50. Kd4 {[%emt 0:00:09]} Rg3 {[%emt 0:00:03]} 51. Rb4 {[%emt 0:00:03]} Rg2 {[%emt 0:00:17]} 52. Kc3 {[%emt 0:00:07]} Rg3+ {[%emt 0:00:03]} 53. Kc4 {[%emt 0:00:04]} Rg2 {[%emt 0:00:03]} 54. Kb5 {[%emt 0:00:08]} Kxg5 {[%emt 0:00:09]} 55. Kxa4 {[%emt 0:00:02]} Kf4 {[%emt 0:00:04]} 56. Kb5 {[%emt 0:00:11]} Rg5+ {[%emt 0:00:10]} 57. Kc6 {[%emt 0:00:06]} Rg6+ {[%emt 0:00:38]} 58. Kd7 {[%emt 0:00:29]} Ra6 {[%emt 0:00:13]} 59. Ke7 {[%emt 0:00:15]} f6 {[%emt 0:00:02]} 60. a4 {[%emt 0:00:09]} Ke5 {[%emt 0:00:02]} 61. b3 {[%emt 0:00:03]} Ra7+ {[%emt 0:00:03]} 62. Kd8 {[%emt 0:00:08]} Kd6 {[%emt 0:00:51]} 63. Rb6+ {[%emt 0:00:34]} Ke5 {[%emt 0:00:02]} 64. Kc8 {[%emt 0:00:06]} Rf7 {[%emt 0:00:25]} 65. Rb4 {[%emt 0:00:07]} Kd6 {[%emt 0:00:20]} 66. a5 {[%emt 0:00:02]} Kc5 {[%emt 0:00:34]} 67. Rb6 {[%emt 0:00:04]} 1-0

[Event "Czech Open Rapid G1 2024"]
[Site "Pardubice"]
[Date "2024.07.18"]
[Round "6.8"]
[White "Seger, Ruediger"]
[Black "Neuman, Petr"]
[Result "1/2-1/2"]
[Annotator "TA"]
[ECO "C41"]
[WhiteElo "2264"]
[BlackElo "2441"]
[PlyCount "88"]
[EventDate "2024.07.16"]
[EventType "swiss"]
[EventCountry "CZE"]
[SourceTitle "playchess.com"]
[Source "ChessBase"]
[SourceQuality "1"]
[TimeControl "1200+10"]

{[%evp 16,88,36,44,47,20,25,35,48,46,53,52,57,61,62,62,85,70,66,71,54,49,56,45,57,45,53,48,49,34,75,75,53,50,47,46,106,127,147,105,107,107,175,171,162,188,157,144,116,-3,41,8,10,10,11,-30,-27,-73,-9,0,73,44,60,-5,138,0,0,0,0,0,0,0,0,0,0]} 1. e4 {[%emt 0:00:29]} d6 {[%emt 0:00:03]} 2. d4 {[%emt 0:00:03]} Nf6 {[%emt 0:00:02]} 3. Nc3 {[%emt 0:00:02]} e5 {[%emt 0:00:02]} 4. Nf3 {[%emt 0:00:04]} Nbd7 {[%emt 0:00:02]} 5. Bc4 {[%emt 0:00:05]} Be7 {[%emt 0:00:01]} 6. O-O {[%emt 0:00:04]} O-O {[%emt 0:00:03]} 7. a4 {[%emt 0:00:02]} c6 {[%emt 0:00:02]} 8. h3 {[%emt 0:00:11]} a5 {[%emt 0:00:04]} 9. Be3 {[%emt 0:00:58]} exd4 {[%emt 0:00:51]} 10. Nxd4 {[%emt 0:00:32]} Nc5 {[%emt 0:00:03]} 11. f3 {[%emt 0:01:03]} Re8 {[%emt 0:00:18] White is slightly better.} 12. Qd2 {[%emt 0:00:03]} Bf8 {[%emt 0:00:05]} 13. Rfe1 {[%emt 0:00:05]} Nfd7 {[%emt 0:00:24]} 14. Bf1 {[%emt 0:03:01]} Ne5 {[%emt 0:00:18]} 15. Rad1 {[%emt 0:01:06]} Qc7 {[%emt 0:00:03]} 16. Bf2 {[%emt 0:02:17]} Bd7 {[%emt 0:01:06]} 17. f4 {[%emt 0:00:14]} Ng6 {[%emt 0:00:03]} 18. g3 {[%emt 0:00:04]} Rad8 {[%emt 0:00:07]} 19. Bg2 {[%emt 0:00:18]} Bc8 {[%emt 0:00:06]} 20. b3 {[%emt 0:01:18]} Be7 {[%emt 0:00:45]} 21. Nde2 {[%emt 0:00:38][%cal Bd4e2,Be2g3,Bg3f5,Bf5e3,Be3c4][%mdl 32]} Nf8 {[%emt 0:00:28]} 22. g4 {[%emt 0:00:18]} Nfe6 {[%emt 0:01:13]} 23. Ng3 {[%emt 0:01:25]} Bh4 {[%emt 0:00:15]} 24. Nf5 {[%emt 0:01:38][%csl LRd6,LRh4]} (24. f5 {with more complications.} Nf8 25. Nh5 Qe7 26. Bxh4 Qxh4 27. Qf2) 24... Bxf2+ {[%emt 0:00:11]} 25. Qxf2 {[%emt 0:00:02]} g6 {[%emt 0:00:22]} (25... Nf8 $14) 26. Ne3 $16 {[%emt 0:01:31]} f6 {[%emt 0:01:35]} (26... d5 $2 27. exd5 Qxf4 (27... Nxf4 $2 28. d6 $18) 28. dxe6 $18) 27. Nc4 {[%emt 0:01:14]} b6 {[%emt 0:01:46]} 28. f5 {[%emt 0:00:35]} gxf5 {[%emt 0:00:33]} (28... Nf8 $16) 29. exf5 $18 {[%emt 0:00:02]} Ng7 {[%emt 0:00:03][%cal Be6g7,Bg7e8,Be8f6,Bf6h5][%mdl 32]} 30. Rxe8+ {[%emt 0:00:16]} Nxe8 {[%emt 0:00:04]} 31. Qg3 {[%emt 0:01:51] White is much more active. The black rooks are passive.} Ba6 {[%emt 0:00:05]} 32. g5 {[%emt 0:00:58]} (32. Re1 $16) 32... Bxc4 {[%emt 0:00:17]} 33. gxf6+ {[%emt 0:00:06]} Kh8 {[%emt 0:00:15]} 34. bxc4 {[%emt 0:00:01]} Nxf6 {[%emt 0:00:04]} 35. Qf3 {[%emt 0:00:13][%cal Of3f4]} Rg8 {[%emt 0:01:08]} 36. Kh1 {[%emt 0:00:39] [#]} (36. Rd2 $11 {was preferrable.}) 36... Qg7 {[%emt 0:05:12]} (36... d5 $1 $17 {Strongly threatening ...Rg3.} 37. cxd5 Rg3) 37. Rxd6 $11 {[%emt 0:01:30]} Ncd7 {[%emt 0:00:13] Excellent horsemanship.} (37... Qe7 $1 $11 38. Rd1 (38. Rxc6 $2 Qe1+ 39. Kh2 Qe5+ 40. Kh1 Rg3 $19) 38... Qe5) 38. Re6 {[%emt 0:00:22][%cal Oc3e2]} (38. Rxc6 $2 {too greedy.} Ne5 39. Qf2 Nxc6 40. Bxc6 Nh5 $19) 38... Nh5 $1 {[%emt 0:00:23][%cal Oh5f4]} 39. Ne4 {[%emt 0:00:09]} (39. Qxh5 $2 Qxg2#) (39. Qxc6 Ng3+ (39... Qxc3 40. Qxd7 Ng3+ 41. Kg1 $14) (39... Nf4 $2 40. f6 $17) 40. Kg1 Nxf5 $19) ({White should play} 39. Ne2 $1 $14) 39... Ne5 {[%emt 0:01:35]} (39... Nf4 $1 $11 {remains equal.} 40. f6 Qxg2+ 41. Qxg2 Rxg2 42. Re8+ Rg8) 40. Rxe5 {[%emt 0:00:16]} (40. Qxh5 $2 Qxg2#) ({White should try} 40. f6 $1 $16 {[%cal Rf6g7]} Nxf3 41. fxg7+ Nxg7 42. Rxc6) 40... Qxe5 {[%emt 0:00:19] The position is equal.} 41. Qxh5 {[%emt 0:00:03]} Qa1+ {[%emt 0:00:26]} 42. Kh2 {[%emt 0:00:02] [#] Black must now prevent f6.} Qe5+ {[%emt 0:00:02]} 43. Kh1 {[%emt 0:00:10]} Qa1+ {[%emt 0:00:13]} 44. Kh2 {[%emt 0:00:02] f6 is the strong threat.} Qe5+ {[%emt 0:00:02] Weighted Error Value: White=0.27 (precise) /Black=0.20 (precise) .  Mistake:       	White=4     	Black=5      Inaccurate:     	White=4     	Black=2      OK:         	White=10    	Black=13     Best:        	White=3     	Black=2      Strong:       	---       	Black=1} 1/2-1/2

[Event "Czech Open Rapid G1 2024"]
[Site "Pardubice"]
[Date "2024.07.18"]
[Round "6.9"]
[White "Brendel, Oliver"]
[Black "Johansson, Linus"]
[Result "0-1"]
[Annotator "TA"]
[ECO "A34"]
[WhiteElo "2291"]
[BlackElo "2451"]
[PlyCount "27"]
[EventDate "2024.07.16"]
[EventType "swiss"]
[EventCountry "CZE"]
[SourceTitle "playchess.com"]
[Source "ChessBase"]
[SourceQuality "1"]
[TimeControl "1200+10"]

{[%evp 15,27,12,34,37,54,-8,0,-39,-39,-45,-20,-34,-22,-24]} 1. c4 {[%emt 0:00:05]} Nf6 {[%emt 0:00:03][%cal Bg8f6,Bf6d5,Bd5c7,Bc7e6][%mdl 32]} 2. Nc3 {[%emt 0:00:10]} c5 {[%emt 0:00:10]} 3. g3 {[%emt 0:00:10]} d5 {[%emt 0:00:21]} 4. cxd5 {[%emt 0:00:00]} Nxd5 {[%emt 0:00:02]} 5. Bg2 {[%emt 0:00:00]} Nc7 {[%emt 0:00:01]} 6. Nf3 {[%emt 0:00:10]} Nc6 {[%emt 0:00:05]} 7. O-O {[%emt 0:00:05]} e5 {[%emt 0:00:02]} 8. a3 {[%emt 0:00:10]} Bd7 {[%emt 0:00:24]} 9. e3 {[%emt 0:01:08]} Ne6 {[%emt 0:00:27]} 10. Nh4 {[%emt 0:02:11]} ({Better is} 10. d3 $14) 10... g6 $11 {[%emt 0:00:48]} 11. Nd5 {[%emt 0:02:36][%cal Ob2b4]} Bg7 $1 {[%emt 0:00:44]} 12. b4 {[%emt 0:00:09]} O-O {[%emt 0:00:42]} 13. Bb2 {[%emt 0:00:48]} Rc8 {[%emt 0:02:13]} 14. Rc1 {[%emt 0:00:14][%mdl 32768] White got outplayed after the opening.   Weighted Error Value: White=0.28 (precise) /Black=0.13 (very precise) .  Mistake:       	White=1     	---        Inaccurate:     	White=1     	---        OK:         	White=1     	---        Best:        	---       	Black=1      Strong:       	---       	Black=1     . Loss on time!?} 0-1

[Event "Czech Open Rapid G1 2024"]
[Site "Pardubice"]
[Date "2024.07.18"]
[Round "6.10"]
[White "Lalic, Bogdan"]
[Black "Prokofiev, Valentyn"]
[Result "1/2-1/2"]
[Annotator "RC"]
[ECO "B38"]
[WhiteElo "2348"]
[BlackElo "2337"]
[PlyCount "83"]
[EventDate "2024.07.16"]
[EventType "swiss"]
[EventCountry "CZE"]
[SourceTitle "playchess.com"]
[Source "ChessBase"]
[SourceQuality "1"]
[TimeControl "1200+10"]

1. c4 {[%emt 0:00:04]} g6 {[%emt 0:00:04]} 2. e4 {[%emt 0:00:19]} Bg7 {[%emt 0:00:09]} 3. d4 {[%emt 0:00:06]} c5 {[%emt 0:00:02]} 4. Nf3 {[%emt 0:00:22]} cxd4 {[%emt 0:00:03]} 5. Nxd4 {[%emt 0:00:01]} Nc6 {[%emt 0:00:15]} 6. Be3 {[%emt 0:00:05]} Qb6 {[%emt 0:00:13]} 7. Nb5 {[%emt 0:00:29]} Qa5+ {[%emt 0:00:01]} 8. Bd2 {[%emt 0:00:09]} Qd8 {[%emt 0:00:01]} 9. Bc3 {[%emt 0:00:35]} Nf6 {[%emt 0:00:53]} 10. Nd2 {[%emt 0:01:32]} d6 {[%emt 0:00:31]} 11. Be2 {[%emt 0:00:06]} O-O {[%emt 0:00:13]} 12. O-O {[%emt 0:00:01]} Qb6 {[%emt 0:00:22]} 13. h3 {[%emt 0:00:27]} a6 {[%emt 0:00:32]} 14. Na3 {[%emt 0:00:01]} Be6 {[%emt 0:00:06]} 15. Nc2 {[%emt 0:00:20]} Nd7 {[%emt 0:02:08]} 16. Bxg7 {[%emt 0:00:07]} Kxg7 {[%emt 0:00:01]} 17. b3 {[%emt 0:00:53]} Rfc8 {[%emt 0:00:22]} 18. Kh2 {[%emt 0:00:18]} Qc5 {[%emt 0:01:13]} 19. f4 {[%emt 0:00:10]} f6 {[%emt 0:00:41]} 20. Bg4 {[%emt 0:00:19]} Bxg4 {[%emt 0:01:04]} 21. Qxg4 {[%emt 0:00:02]} f5 {[%emt 0:00:01]} 22. Qe2 {[%emt 0:00:37]} Nf6 {[%emt 0:01:12]} 23. exf5 {[%emt 0:00:52]} Qxf5 {[%emt 0:01:40]} 24. Ne3 {[%emt 0:00:06]} Qd7 {[%emt 0:00:26]} 25. Rae1 {[%emt 0:00:15]} Rf8 {[%emt 0:00:38]} 26. Nf3 {[%emt 0:00:57]} Rae8 {[%emt 0:01:13]} 27. Nd5 {[%emt 0:01:58]} e6 {[%emt 0:00:42]} 28. Nxf6 {[%emt 0:00:04]} Rxf6 {[%emt 0:00:01]} 29. Qb2 {[%emt 0:00:21]} Qe7 {[%emt 0:03:42]} 30. Rd1 {[%emt 0:02:39]} e5 {[%emt 0:00:47]} 31. c5 {[%emt 0:02:59]} Kg8 {[%emt 0:01:36]} 32. cxd6 {[%emt 0:00:12]} Rxd6 {[%emt 0:00:01]} 33. fxe5 {[%emt 0:00:27]} Rxd1 {[%emt 0:01:34]} 34. Rxd1 {[%emt 0:00:02]} Nxe5 {[%emt 0:00:01]} 35. Qxe5 {[%emt 0:00:07]} Qxe5+ {[%emt 0:00:00]} 36. Nxe5 {[%emt 0:00:02]} Rxe5 {[%emt 0:00:01]} 37. Rd7 {[%emt 0:00:02]} Rb5 {[%emt 0:00:52]} 38. Kg3 {[%emt 0:00:15]} a5 {[%emt 0:00:10]} 39. Kf3 {[%emt 0:00:20]} a4 {[%emt 0:00:43]} 40. bxa4 {[%emt 0:00:08]} Rb2 {[%emt 0:01:12]} 41. a5 {[%emt 0:00:10]} Rxa2 {[%emt 0:00:05]} 42. Rxb7 {[%emt 0:00:02]} 1/2-1/2

[Event "Czech Open Rapid G1 2024"]
[Site "Pardubice"]
[Date "2024.07.18"]
[Round "6.11"]
[White "Berin, Artem"]
[Black "Rasik, Vitezslav"]
[Result "1/2-1/2"]
[Annotator "RC"]
[ECO "E95"]
[WhiteElo "2234"]
[BlackElo "2415"]
[PlyCount "53"]
[EventDate "2024.07.16"]
[EventType "swiss"]
[EventCountry "CZE"]
[SourceTitle "playchess.com"]
[Source "ChessBase"]
[SourceQuality "1"]
[TimeControl "1200+10"]

1. d4 {[%emt 0:00:02]} d6 {[%emt 0:00:02]} 2. Nf3 {[%emt 0:00:06]} g6 {[%emt 0:00:09]} 3. c4 {[%emt 0:00:03]} Bg7 {[%emt 0:00:05]} 4. Nc3 {[%emt 0:00:02]} Nf6 {[%emt 0:00:02]} 5. e4 {[%emt 0:00:01]} O-O {[%emt 0:00:08]} 6. Be2 {[%emt 0:00:01]} Nbd7 {[%emt 0:00:48]} 7. O-O {[%emt 0:00:06]} e5 {[%emt 0:00:03]} 8. Re1 {[%emt 0:00:08]} Re8 {[%emt 0:00:16]} 9. Bf1 {[%emt 0:00:16]} a6 {[%emt 0:00:10]} 10. h3 {[%emt 0:00:26]} exd4 {[%emt 0:01:39]} 11. Nxd4 {[%emt 0:00:06]} Nc5 {[%emt 0:00:07]} 12. f3 {[%emt 0:00:51]} Nh5 {[%emt 0:00:31]} 13. Be3 {[%emt 0:00:30]} Ng3 {[%emt 0:01:04]} 14. Qd2 {[%emt 0:00:51]} Nxf1 {[%emt 0:01:02]} 15. Rxf1 {[%emt 0:00:11]} Ne6 {[%emt 0:02:25]} 16. Rad1 {[%emt 0:00:58]} Bd7 {[%emt 0:01:51]} 17. Nxe6 {[%emt 0:02:01]} Bxe6 {[%emt 0:01:41]} 18. Nd5 {[%emt 0:00:26]} Bxd5 {[%emt 0:01:18]} 19. cxd5 {[%emt 0:00:28]} Qd7 {[%emt 0:01:18]} 20. Bd4 {[%emt 0:00:48]} Bxd4+ {[%emt 0:01:08]} 21. Qxd4 {[%emt 0:00:02]} f5 {[%emt 0:00:27]} 22. exf5 {[%emt 0:01:04]} Qxf5 {[%emt 0:00:05]} 23. Rfe1 {[%emt 0:00:09]} Qf7 {[%emt 0:00:47]} 24. Kf2 {[%emt 0:00:45]} Rxe1 {[%emt 0:01:16]} 25. Rxe1 {[%emt 0:00:03]} Re8 {[%emt 0:00:30]} 26. Rxe8+ Qxe8 {[%emt 0:00:01]} 27. h4 {[%emt 0:03:37]} 1/2-1/2

[Event "Czech Open Rapid G1 2024"]
[Site "Pardubice"]
[Date "2024.07.18"]
[Round "6.12"]
[White "Piesik, Piotr"]
[Black "Shilon Rahav, Eliran"]
[Result "1-0"]
[Annotator "TA"]
[ECO "D79"]
[WhiteElo "2415"]
[BlackElo "2055"]
[PlyCount "55"]
[EventDate "2024.07.16"]
[EventType "swiss"]
[EventCountry "CZE"]
[SourceTitle "playchess.com"]
[Source "ChessBase"]
[SourceQuality "1"]
[TimeControl "1200+10"]

{[%evp 21,55,0,0,10,7,0,18,11,31,11,135,141,138,144,293,285,283,278,283,283,328,314,368,390,630,643,650,646,654,571,557,533,736,751,785,778]} 1. Nf3 {[%emt 0:02:55]} c5 {[%emt 0:00:01]} 2. g3 {[%emt 0:00:02]} Nc6 {[%emt 0:00:02]} 3. Bg2 {[%emt 0:00:01]} g6 {[%emt 0:00:37]} 4. c3 {[%emt 0:00:04]} Bg7 {[%emt 0:00:04]} 5. d4 {[%emt 0:00:01]} cxd4 {[%emt 0:00:06]} 6. cxd4 {[%emt 0:00:01]} d5 {[%emt 0:00:05]} 7. O-O {[%emt 0:00:02]} Nf6 {[%emt 0:00:10]} 8. Nc3 {[%emt 0:00:04]} O-O {[%emt 0:00:06]} 9. Ne5 {[%emt 0:00:01]} e6 {[%emt 0:00:14]} 10. Nxc6 {[%emt 0:00:03]} bxc6 {[%emt 0:00:01][%cal Bb7c6,Bc6c5][%mdl 32]} 11. Na4 {[%emt 0:00:08]} Nd7 {[%emt 0:00:26]} 12. b3 {[%emt 0:00:02]} c5 {[%emt 0:00:24]} 13. Bb2 {[%emt 0:00:14]} Bb7 {[%emt 0:00:21]} 14. Rc1 {[%emt 0:00:08] The position is equal.} (14. Nxc5 $2 Nxc5 15. Ba3 Ne4 16. Bxf8 Bxf8 $19) 14... Rc8 {[%emt 0:00:02]} 15. Qd2 {[%emt 0:00:13]} (15. Nxc5 $2 Nxc5 16. Ba3 Ne4 17. Rxc8 Qxc8 $17 (17... Bxc8 18. Bxf8 Qxf8 19. Qd3 $17)) 15... Qe7 {[%emt 0:00:33] [#]} (15... Bxd4 $11 {remains equal.} 16. Bxd4 cxd4) 16. Ba3 $1 $16 {[%emt 0:00:18]} Rfd8 {[%emt 0:00:35]} (16... Bxd4 $2 {perishes.} 17. Qxd4 cxd4 18. Bxe7 $18) 17. Nxc5 {[%emt 0:00:58] White is more active.} ({Don't take} 17. dxc5 $6 Bc6 $16) 17... Bc6 {[%emt 0:00:38] [#]} (17... Ba6 $16 18. Rc2 (18. Nxa6 Qxa3 19. Nb4 Qa5 $11) 18... Nxc5) 18. Nb7 $1 $18 {[%emt 0:01:39][%mdl 512]} Qxa3 {[%emt 0:00:16]} 19. Nxd8 {[%emt 0:00:02]} Rxd8 {[%emt 0:00:15]} 20. Rxc6 {[%emt 0:00:02]} Nb6 {[%emt 0:00:20]} 21. Rfc1 {[%emt 0:00:30]} h5 {[%emt 0:00:28]} 22. h4 {[%emt 0:01:58]} Qa6 $2 {[%emt 0:01:15]} (22... Bf6 23. R1c5 Rd7) 23. a4 {[%emt 0:00:39] White is clearly winning.} Qb7 {[%emt 0:00:09]} 24. Rc7 {[%emt 0:00:34]} Qa8 {[%emt 0:00:56]} 25. Qc3 {[%emt 0:00:48]} Qb8 {[%emt 0:00:19]} 26. Qc5 {[%emt 0:06:08]} Bf6 {[%emt 0:02:07]} 27. e3 {[%emt 0:00:19]} Kg7 {[%emt 0:00:11]} 28. Qc6 {[%emt 0:00:20] Black got outplayed after the opening.   Weighted Error Value: White=0.12 (very precise) /Black=0.54.  Mistake:       	---       	Black=3      Inaccurate:     	---       	Black=1      OK:         	White=6     	Black=2      Strong:       	White=1     	---        Brilliant:      	White=1     	---} 1-0

[Event "Czech Open Rapid G1 2024"]
[Site "Pardubice"]
[Date "2024.07.18"]
[Round "6.13"]
[White "Karvatskyi, Oleksii"]
[Black "Kusa, Jakub"]
[Result "1-0"]
[Annotator "TA"]
[ECO "D00"]
[WhiteElo "1990"]
[BlackElo "2423"]
[PlyCount "63"]
[EventDate "2024.07.16"]
[EventType "swiss"]
[EventCountry "CZE"]
[SourceTitle "playchess.com"]
[Source "ChessBase"]
[SourceQuality "1"]
[TimeControl "1200+10"]

{[%evp 9,63,-60,-58,-67,-58,-56,-72,-62,-66,-70,-16,-64,-31,-31,33,37,39,0,0,0,0,0,25,12,6,13,8,0,42,22,20,7,574,585,595,593,590,587,570,508,535,523,618,589,696,696,672,669,766,759,841,828,832,826,760,679]} 1. Nc3 {[%emt 0:00:02]} d5 {[%emt 0:00:07]} 2. d4 {[%emt 0:00:34]} Bf5 {[%emt 0:00:03]} 3. Bf4 {[%emt 0:00:01]} e6 {[%emt 0:00:02]} 4. Nf3 {[%emt 0:00:02]} Bd6 {[%emt 0:00:12]} 5. Ne5 {[%emt 0:00:05]} f6 {[%emt 0:01:09]} 6. Nd3 {[%emt 0:00:02]} Bxd3 $1 {[%emt 0:00:22]} 7. Bxd6 {[%emt 0:00:03]} Bxe2 $1 {[%emt 0:01:12]} 8. Qxe2 {[%emt 0:00:50] Black is better.} Qxd6 {[%emt 0:00:03]} 9. g3 {[%emt 0:00:02]} Ne7 {[%emt 0:01:16]} (9... Nc6 $15 10. O-O-O f5) 10. Bh3 {[%emt 0:00:07]} (10. O-O-O $11 {feels stronger.}) 10... Kf7 {[%emt 0:02:17]} 11. O-O-O {[%emt 0:00:11]} Nf5 {[%emt 0:00:46]} (11... f5 $15) 12. Bxf5 $14 {[%emt 0:01:07]} exf5 {[%emt 0:00:01]} 13. Qf3 {[%emt 0:00:01]} c6 {[%emt 0:00:03]} 14. Qxf5 {[%emt 0:00:03]} Qe6 {[%emt 0:01:25] Repels Ne2} 15. Qd3 {[%emt 0:00:12]} Nd7 {[%emt 0:00:20]} 16. Ne2 {[%emt 0:00:12][%cal Bc3e2,Be2f4,Bf4g6][%mdl 32]} Rae8 {[%emt 0:00:19]} 17. Nf4 {[%emt 0:00:12]} Qe7 {[%emt 0:01:17]} 18. h4 {[%emt 0:00:15]} g6 {[%emt 0:01:03]} 19. g4 {[%emt 0:01:15][%cal Bg3g4,Bg4g5][%mdl 32]} Qd6 {[%emt 0:01:29]} 20. Qg3 {[%emt 0:00:12][%cal Of4g6] And now Nxg6! would win.} Re4 $2 {[%emt 0:00:14][%mdl 8192] [#] This move loses the game for Black.} (20... Rhg8 $11 {and Black has nothing to worry.}) 21. Nxg6 $1 $18 {[%emt 0:00:17][%mdl 512] White is clearly winning.} Qxg3 {[%emt 0:01:27]} 22. Nxh8+ {[%emt 0:00:01]} Kg7 {[%emt 0:00:01]} 23. fxg3 {[%emt 0:00:01]} Kxh8 {[%emt 0:00:03][%mdl 4096] Endgame. KRR-KRN} 24. g5 {[%emt 0:00:11]} Kg7 {[%emt 0:00:07]} 25. Rhe1 {[%emt 0:00:17]} f5 {[%emt 0:00:06][%cal Bf6f5,Bf5g4][%mdl 32]} 26. Rxe4 {[%emt 0:00:05]} dxe4 {[%emt 0:00:09] KR-KN} 27. Kd2 {[%emt 0:00:20]} Kg6 {[%emt 0:00:09]} 28. Rf1 {[%emt 0:00:11]} b5 {[%emt 0:01:10]} 29. b3 {[%emt 0:02:11]} Nb6 {[%emt 0:00:02] [#]} 30. g4 $1 {[%emt 0:00:38]} fxg4 {[%emt 0:00:13]} 31. Rf6+ {[%emt 0:00:01]} Kg7 {[%emt 0:00:00]} 32. Re6 {[%emt 0:00:14] Weighted Error Value: White=0.10 (very precise) /Black=0.47.  Loses game:     	---       	Black=1      Mistake:       	White=1     	Black=2      Inaccurate:     	White=1     	Black=2      OK:         	White=7     	Black=7      Best:        	White=3     	---        Strong:       	---       	Black=2      Brilliant:      	White=1     	---} 1-0